fUSD/lending_fUSD_20260311
["ID","MTS","AMOUNT","RATE_DAILY","PERIOD"]
[408208854,1773243041167,-500.0,0.00019725,2]
[408208855,1773243041176,-166.68,0.00019735,2]
[408208856,1773243041185,-350.0,0.00019741,2]
[408208857,1773243041194,-150.0,0.0001978,2]
[408208858,1773243041203,-500.0,0.0001978,2]
[408208859,1773243041211,-250.0,0.0001978,2]
[408208860,1773243041223,-150.0,0.0001978,2]
[408208861,1773243041232,-150.0,0.0001978,2]
[408208862,1773243041241,-167.87375586,0.0001978,2]
[408208863,1773243041250,-150.0,0.0001978,2]
[408208864,1773243041259,-250.0,0.0001978,2]
[408208865,1773243041267,-250.0,0.0001978,2]
[408208866,1773243041277,-200.0,0.0001978,2]
[408208867,1773243041286,-150.0,0.0001978,2]
[408208868,1773243041295,-500.0,0.0001978,2]
[408208869,1773243041304,-500.0,0.0001978,2]
[408208870,1773243041313,-500.0,0.0001978,2]
[408208871,1773243041321,-150.0,0.0001978,2]
[408208872,1773243041330,-150.0,0.0001978,2]
[408208873,1773243041339,-500.0,0.0001978,2]
[408208874,1773243041348,-447.0,0.0001978,2]
[408208875,1773243041357,-500.0,0.0001978,2]
[408208876,1773243041367,-500.0,0.0001978,2]
[408208877,1773243041375,-500.0,0.0001978,2]
[408208878,1773243041384,-2900.0,0.000198,7]
[408208879,1773243041394,-913.48722,0.000198,2]
[408208880,1773243041403,-913.48722,0.000198,2]
[408208881,1773243041412,-913.48723,0.000198,2]
[408208882,1773243041421,-913.48722,0.000198,2]
[408208883,1773243041430,-1000.0,0.00019801,2]
[408208884,1773243041439,-168.0,0.00019819,2]
[408208885,1773243041448,-200.0,0.00019835,2]
[408208886,1773243041456,-500.0,0.00019835,2]
[408208887,1773243041465,-200.0,0.00019835,2]
[408208888,1773243041476,-200.0,0.00019835,2]
[408208889,1773243041486,-200.0,0.00019835,2]
[408208890,1773243041495,-200.0,0.00019835,2]
[408208891,1773243041505,-500.0,0.00019835,2]
[408208892,1773243041514,-150.0,0.00019835,2]
[408208893,1773243041523,-150.0,0.00019835,2]
[408208894,1773243041532,-150.0,0.00019835,2]
[408208895,1773243041541,-150.0,0.00019835,2]
[408208896,1773243041550,-300.0,0.00019835,2]
[408208897,1773243041559,-447.0,0.00019835,2]
[408208898,1773243041568,-500.0,0.00019835,2]
[408208899,1773243041577,-350.0,0.00019835,2]
[408208900,1773243041587,-300.0,0.00019835,2]
[408208901,1773243041596,-200.0,0.0001984,2]
[408208902,1773243041605,-500.0,0.00019889,2]
[408208903,1773243041614,-249.0,0.00019889,2]
[408208904,1773243041623,-191.44383599,0.00019889,2]
[408208905,1773243041632,-269.05367316,0.00019889,2]
[408208906,1773243041641,-447.0,0.00019889,2]
[408208907,1773243041650,-511.0,0.00019889,2]
[408208908,1773243041659,-1655.341,0.0001989,2]
[408208909,1773243041668,-1000.0,0.00019899,2]
[408208910,1773243041677,-10056.2266,0.00019899,2]
[408208911,1773243041686,-2178.67911252,0.00019899,2]
[408208912,1773243041695,-168.0,0.00019899,2]
[408208913,1773243041704,-456.22852692,0.000199,2]
[408208914,1773243041714,-461.9065144,0.000199,2]
[408208915,1773243041723,-3700.0,0.000199,7]
[408208916,1773243041732,-1065.0310306,0.000199,2]
[408208917,1773243041741,-168.0,0.00019932,2]
[408208918,1773243041751,-275.0,0.00019944,2]
[408208919,1773243041760,-447.0,0.00019944,2]
[408208920,1773243041769,-500.0,0.00019973,2]
[408208921,1773243041778,-500.0,0.00019973,2]
[408208922,1773243041787,-500.0,0.00019973,2]
[408208923,1773243041796,-500.0,0.00019979,2]
[408208924,1773243041806,-335.25,0.00019989,2]
[408208925,1773243041815,-335.25,0.0001999,2]
[408208926,1773243041825,-335.25,0.0001999,2]
[408208927,1773243041834,-151.0,0.00019997,2]
[408208928,1773243041844,-500.0,0.00019998,2]
[408208929,1773243041853,-500.0,0.00019998,2]
[408208930,1773243041862,-500.0,0.00019998,2]
[408208931,1773243041871,-397.97236465,0.00019998,2]
[408208932,1773243041880,-500.0,0.00019998,2]
[408208933,1773243041889,-1080.19,0.00019998,2]
[408208934,1773243041898,-500.0,0.00019998,2]
[408208935,1773243041908,-500.0,0.00019998,2]
[408208936,1773243041917,-447.0,0.00019999,2]
[408208937,1773243041926,-300.0,0.00019999,2]
[408208938,1773243041935,-300.0,0.00019999,2]
[408208939,1773243041944,-500.0,0.00019999,2]
[408208940,1773243041953,-501.54386851,0.00019999,2]
[408208941,1773243041963,-500.0,0.00019999,2]
[408208942,1773243041974,-500.0,0.00019999,2]
[408208943,1773243041984,-191.39028097,0.00019999,2]
[408208944,1773243041993,-500.0,0.00019999,2]
[408208945,1773243042002,-500.0,0.00019999,2]
[408208946,1773243042012,-507.73038979,0.00019999,2]
[408208947,1773243042021,-500.0,0.00019999,2]
[408208948,1773243042033,-500.0,0.00019999,2]
[408208949,1773243042046,-500.0,0.00019999,2]
[408208950,1773243042059,-500.0,0.00019999,2]
[408208951,1773243042068,-500.0,0.00019999,2]
[408208952,1773243042078,-500.0,0.00019999,2]
[408208953,1773243042087,-500.0,0.00019999,2]
[408208954,1773243042096,-500.0,0.00019999,2]
[408208955,1773243042105,-500.0,0.00019999,2]
[408208956,1773243042114,-500.0,0.00019999,2]
[408208957,1773243042123,-500.0,0.00019999,2]
[408208958,1773243042133,-506.32926117,0.00019999,2]
[408208959,1773243042142,-500.0,0.00019999,2]
[408208960,1773243042151,-500.0,0.00019999,2]
[408208961,1773243042161,-500.0,0.00019999,2]
[408208962,1773243042170,-500.0,0.00019999,2]
[408208963,1773243042179,-433.66808291,0.00019999,2]
[408208964,1773243042188,-505.78229935,0.00019999,2]
[408208965,1773243042197,-1080.19,0.00019999,2]
[408208966,1773243042207,-1080.19,0.00019999,2]
[408208967,1773243042216,-1080.19,0.00019999,2]
[408208968,1773243042227,-1080.19,0.00019999,2]
[408208969,1773243042236,-1080.19,0.00019999,2]
[408208970,1773243042246,-1080.19,0.00019999,2]
[408208971,1773243042255,-1080.19,0.00019999,2]
[408208972,1773243042265,-1080.19,0.00019999,2]
[408208973,1773243042274,-1080.19,0.00019999,2]
[408208975,1773243042283,-1080.19,0.00019999,2]
[408208976,1773243042294,-1080.19,0.00019999,2]
[408208977,1773243042304,-1080.19,0.00019999,2]
[408208978,1773243042314,-1080.19,0.00019999,2]
[408208979,1773243042325,-1080.19,0.00019999,2]
[408208980,1773243042334,-506.77106008,0.00019999,2]
[408208981,1773243042343,-500.0,0.00019999,2]
[408208982,1773243042352,-500.0,0.00019999,2]
[408208983,1773243042362,-500.0,0.00019999,2]
[408208985,1773243042372,-500.0,0.00019999,2]
[408208987,1773243042381,-500.0,0.00019999,2]
[408208989,1773243042391,-356.78,0.00019999,2]
[408208991,1773243042400,-500.0,0.00019999,2]
[408208993,1773243042409,-527.47030383,0.00019999,2]
[408208995,1773243042418,-500.0,0.00019999,2]
[408208997,1773243042428,-333.80551454,0.00019999,2]
[408208998,1773243042437,-500.0,0.00019999,2]
[408208999,1773243042446,-531.3103933,0.00019999,2]
[408209000,1773243042456,-500.0,0.00019999,2]
[408209001,1773243042466,-500.0,0.00019999,2]
[408209002,1773243042475,-500.0,0.00019999,2]
[408209003,1773243042484,-500.0,0.00019999,2]
[408209004,1773243042493,-366.62040222,0.00019999,2]
[408209005,1773243042503,-500.0,0.00019999,2]
[408209006,1773243042511,-500.0,0.00019999,2]
[408209007,1773243042521,-500.0,0.00019999,2]
[408209008,1773243042530,-436.3340644,0.00019999,2]
[408209009,1773243042540,-3000.0,0.00019999,2]
[408209010,1773243042549,-3000.0,0.00019999,7]
[408209011,1773243042558,-500.0,0.00019999,2]
[408209012,1773243042567,-299.993729,0.00019999,2]
[408209013,1773243042576,-500.0,0.00019999,2]
[408209014,1773243042585,-500.0,0.00019999,2]
[408209015,1773243042594,-364.97685461,0.00019999,2]
[408209016,1773243042603,-170.92243951,0.00019999,2]
[408209017,1773243042612,-540.06969346,0.00019999,2]
[408209018,1773243042621,-302.05324321,0.00019999,2]
[408209019,1773243042631,-3204.0,0.0002,2]
[408209020,1773243042640,-2360.0,0.0002,2]
[408209021,1773243042649,-913530.33364992,0.0002,2]
[408209022,1773243042699,-511.30018354,0.000198,2]
[408209023,1773243042711,-1139.33803329,0.000198,2]
[408209024,1773243042723,-77.75741031,0.000198,2]
[408209025,1773243042732,-2000.0,0.000199,2]
[408209026,1773243042742,-4528.76004832,0.0002,2]
[408209027,1773243042754,-983.96500288,0.0002,2]
[408209028,1773243042765,-2180.4925724,0.0002,2]
[408209029,1773243042780,-1947.72357344,0.0002,2]
[408209035,1773243045403,-427.46458586,0.000199,2]
[408209036,1773243045412,-41076.42601578,0.0002,2]
[408209037,1773243045423,-350.55994212,0.0002,2]
[408209038,1773243045581,-882.75330222,0.0002,2]
[408209039,1773243045592,-1620.66192896,0.0002,2]
[408209040,1773243045632,-4253.81119876,0.0002,2]
[408209074,1773244012273,-228.6051298,0.00015,2]
[408209080,1773244172069,-835.56071105,0.00015,2]
[408209081,1773244231583,-1910.41415915,0.00015,2]
[408209082,1773244231594,-600.0,0.0001575,2]
[408209083,1773244231606,-406.0,0.00016498,2]
[408209084,1773244231616,-550.0,0.00016499,2]
[408209085,1773244231629,-300.0,0.00016499,2]
[408209087,1773244231639,-195.0,0.000165,2]
[408209088,1773244231648,-195.0,0.000165,2]
[408209089,1773244231660,-195.0,0.000165,2]
[408209090,1773244231674,-600.0,0.000165,2]
[408209091,1773244231685,-501.38283497,0.000165,2]
[408209092,1773244231696,-512.6518,0.000165,2]
[408209093,1773244231708,-500.0,0.000165,2]
[408209094,1773244231719,-500.0,0.000165,2]
[408209095,1773244231732,-308.923,0.00017,2]
[408209096,1773244231744,-504.0,0.00017,2]
[408209097,1773244231756,-2000.0,0.00018024,2]
[408209098,1773244231767,-1500.0,0.00018037,2]
[408209099,1773244231777,-150.0,0.00018421,2]
[408209100,1773244231788,-168.0,0.00018467,2]
[408209101,1773244231800,-1000.0,0.00018501,2]
[408209102,1773244231809,-1589.05615642,0.00018523,2]
[408209103,1773244231822,-200.0,0.00018524,2]
[408209104,1773244231833,-176.98,0.00018529,2]
[408209105,1773244231844,-1782.71,0.00018533,2]
[408209106,1773244231853,-299.99,0.00018533,4]
[408209109,1773244231863,-9999.99,0.00018533,2]
[408209110,1773244231874,-7655.43,0.00018533,2]
[408209111,1773244231885,-4999.99,0.00018533,2]
[408209112,1773244231897,-150.99,0.00018533,2]
[408209113,1773244231909,-54737.54378746,0.00018552,2]
[408209114,1773244231923,-194.08511254,0.00018552,2]
[408209115,1773244231939,-167.23452348,0.00018573,2]
[408209116,1773244231950,-501.68321404,0.00018573,2]
[408209117,1773244231961,-549.72227335,0.00018573,2]
[408209119,1773244231975,-500.0,0.00018573,2]
[408209121,1773244231985,-500.59506697,0.00018573,2]
[408209123,1773244231998,-500.0,0.00018573,2]
[408209125,1773244232008,-1753.85872304,0.00018607,2]
[408209127,1773244232019,-200.0,0.00018641,2]
[408209129,1773244232029,-500.0,0.00018641,2]
[408209131,1773244232041,-500.0,0.00018641,2]
[408209133,1773244232052,-254.5185532,0.00018641,2]
[408209157,1773244232064,-245.4814468,0.00018641,2]
[408209159,1773244232282,-151.0,0.00018641,2]
[408209161,1773244232295,-151.0,0.00018641,2]
[408209163,1773244232304,-151.0,0.00018641,2]
[408209165,1773244232314,-151.0,0.00018641,2]
[408209167,1773244232323,-151.0,0.00018641,2]
[408209169,1773244232333,-46611.4279,0.00018652,2]
[408209171,1773244232343,-1832.17,0.00018706,2]
[408209173,1773244232352,-500.0,0.00018773,2]
[408209175,1773244232362,-500.0,0.00018773,2]
[408209177,1773244232372,-500.0,0.00018851,2]
[408209179,1773244232383,-500.0,0.00018851,2]
[408209181,1773244232393,-554.34014391,0.00018851,2]
[408209183,1773244232404,-500.0,0.00018851,2]
[408209185,1773244232414,-500.0,0.00018851,2]
[408209186,1773244232423,-500.0,0.00018851,2]
[408209187,1773244232432,-500.0,0.00018851,2]
[408209188,1773244232443,-500.0,0.00018851,2]
[408209189,1773244232454,-500.0,0.00018851,2]
[408209190,1773244232463,-500.0,0.00018851,2]
[408209191,1773244232474,-500.0,0.00018851,2]
[408209192,1773244232485,-500.0,0.00018851,2]
[408209193,1773244232495,-500.0,0.00018851,2]
[408209194,1773244232505,-500.0,0.00018851,2]
[408209195,1773244232514,-500.0,0.00018851,2]
[408209196,1773244232524,-500.0,0.00018851,2]
[408209197,1773244232533,-500.0,0.00018851,2]
[408209198,1773244232543,-500.0,0.00018851,2]
[408209199,1773244232552,-174.65,0.00018851,2]
[408209200,1773244232562,-500.0,0.00018851,2]
[408209201,1773244232571,-500.0,0.00018851,2]
[408209202,1773244232580,-500.0,0.00018851,2]
[408209203,1773244232590,-504.0,0.00018853,3]
[408209204,1773244232599,-4870.5413,0.00018915,2]
[408209205,1773244232608,-1000.0,0.00018915,2]
[408209206,1773244232618,-500.0,0.00018999,2]
[408209207,1773244232627,-500.0,0.00018999,2]
[408209208,1773244232636,-500.0,0.00018999,2]
[408209209,1773244232646,-500.0,0.00018999,2]
[408209210,1773244232655,-500.0,0.00018999,2]
[408209211,1773244232664,-500.0,0.00018999,2]
[408209212,1773244232674,-500.0,0.00018999,2]
[408209213,1773244232682,-500.0,0.00018999,2]
[408209214,1773244232692,-95.7820676,0.00018999,2]
[408209215,1773244232703,-404.2179324,0.00018999,2]
[408209216,1773244232712,-286.89083321,0.00018999,2]
[408209217,1773244232722,-250.0,0.00018999,2]
[408209218,1773244232731,-175.95947295,0.00018999,2]
[408209219,1773244232740,-623.98058122,0.00019,5]
[408209220,1773244232750,-9.98368022,0.00019023,2]
[408209221,1773244232768,-490.01631978,0.00019023,2]
[408209222,1773244232778,-1220.0,0.0001903,2]
[408209223,1773244232788,-174.65,0.00019125,2]
[408209224,1773244232797,-318.0,0.00019199,2]
[408209225,1773244232806,-1000.0,0.00019253,2]
[408209226,1773244232816,-318.0,0.00019294,2]
[408209227,1773244232826,-350.0,0.00019306,2]
[408209228,1773244232835,-689.0,0.00019318,2]
[408209229,1773244232844,-318.0,0.00019319,2]
[408209230,1773244232853,-1000.0,0.00019321,2]
[408209231,1773244232863,-318.0,0.00019466,2]
[408209232,1773244232872,-242.84051576,0.00019527,2]
[408209233,1773244232887,-757.15948424,0.00019527,2]
[408209234,1773244232897,-212.64601143,0.00019544,2]
[408209235,1773244232908,-105.35398857,0.00019544,2]
[408209236,1773244232917,-176.98,0.00019559,2]
[408209237,1773244232926,-2500.0,0.0001957,2]
[408209238,1773244232936,-500.0,0.000196,7]
[408209239,1773244232945,-150.0,0.00019615,2]
[408209240,1773244232954,-150.0,0.00019615,2]
[408209241,1773244232963,-277.09096331,0.00019615,2]
[408209242,1773244232973,-150.0,0.00019615,2]
[408209243,1773244232982,-150.0,0.00019615,2]
[408209244,1773244232992,-150.0,0.00019615,2]
[408209245,1773244233001,-150.0,0.00019615,2]
[408209246,1773244233011,-511.0,0.00019615,2]
[408209247,1773244233021,-150.0,0.00019615,2]
[408209248,1773244233030,-150.0,0.00019615,2]
[408209249,1773244233039,-150.0,0.00019615,2]
[408209250,1773244233048,-150.0,0.00019615,2]
[408209251,1773244233057,-150.0,0.00019615,2]
[408209252,1773244233067,-150.0,0.00019615,2]
[408209253,1773244233077,-500.0,0.00019615,2]
[408209254,1773244233086,-150.0,0.00019615,2]
[408209255,1773244233095,-162.11913658,0.00019615,2]
[408209256,1773244233105,-150.0,0.00019615,2]
[408209257,1773244233114,-150.0,0.00019615,2]
[408209258,1773244233123,-150.0,0.00019615,2]
[408209259,1773244233133,-150.0,0.00019615,2]
[408209260,1773244233142,-150.0,0.00019615,2]
[408209261,1773244233152,-150.0,0.00019615,2]
[408209262,1773244233161,-500.0,0.00019615,2]
[408209263,1773244233171,-150.0,0.00019615,2]
[408209264,1773244233181,-150.0,0.00019615,2]
[408209265,1773244233190,-150.0,0.00019615,2]
[408209266,1773244233200,-500.0,0.00019615,2]
[408209267,1773244233209,-150.0,0.00019615,2]
[408209268,1773244233220,-500.0,0.00019615,2]
[408209269,1773244233229,-150.0,0.0001967,2]
[408209270,1773244233240,-150.0,0.0001967,2]
[408209271,1773244233250,-150.0,0.0001967,2]
[408209272,1773244233260,-150.0,0.0001967,2]
[408209273,1773244233269,-150.0,0.0001967,2]
[408209274,1773244233279,-511.0,0.0001967,2]
[408209275,1773244233289,-150.0,0.0001967,2]
[408209276,1773244233298,-150.0,0.0001967,2]
[408209277,1773244233308,-200.0,0.0001967,2]
[408209278,1773244233317,-150.0,0.0001967,2]
[408209279,1773244233327,-150.0,0.0001967,2]
[408209280,1773244233336,-560.0,0.0001967,2]
[408209281,1773244233346,-150.0,0.0001967,2]
[408209282,1773244233355,-150.0,0.0001967,2]
[408209283,1773244233365,-150.0,0.0001967,2]
[408209284,1773244233374,-264.11498069,0.0001967,2]
[408209285,1773244233385,-200.0,0.0001967,2]
[408209286,1773244233398,-150.0,0.0001967,2]
[408209287,1773244233407,-500.0,0.0001967,2]
[408209288,1773244233417,-150.0,0.0001967,2]
[408209289,1773244233427,-150.0,0.0001967,2]
[408209290,1773244233436,-150.0,0.0001967,2]
[408209291,1773244233446,-500.0,0.0001967,2]
[408209292,1773244233456,-500.0,0.0001967,2]
[408209293,1773244233466,-172.95802059,0.00019698,2]
[408209294,1773244233475,-250.0,0.000197,2]
[408209295,1773244233486,-1000.0,0.000197,7]
[408209296,1773244233496,-350.0,0.00019706,2]
[408209297,1773244233506,-150.0,0.00019725,2]
[408209298,1773244233516,-200.0,0.00019725,2]
[408209299,1773244233525,-150.0,0.00019725,2]
[408209300,1773244233536,-200.0,0.00019725,2]
[408209301,1773244233546,-511.0,0.00019725,2]
[408209302,1773244233555,-200.0,0.00019725,2]
[408209303,1773244233565,-150.0,0.00019725,2]
[408209304,1773244233574,-150.0,0.00019725,2]
[408209305,1773244233583,-200.0,0.00019725,2]
[408209306,1773244233593,-200.0,0.00019725,2]
[408209307,1773244233602,-200.0,0.00019725,2]
[408209308,1773244233612,-150.0,0.00019725,2]
[408209309,1773244233622,-500.0,0.00019725,2]
[408209310,1773244233630,-200.0,0.00019725,2]
[408209311,1773244233640,-250.0,0.00019725,2]
[408209312,1773244233649,-286.0,0.00019725,2]
[408209313,1773244233658,-258.0,0.00019725,2]
[408209314,1773244233667,-110.76973816,0.00019725,2]
[408209319,1773244237550,-139.23026184,0.00019725,2]
[408209320,1773244237560,-212.0,0.00019737,2]
[408209321,1773244237569,-250.0,0.00019741,2]
[408209322,1773244237579,-350.0,0.00019756,2]
[408209323,1773244237590,-150.0,0.00019779,2]
[408209324,1773244237601,-150.0,0.00019779,2]
[408209325,1773244237610,-511.0,0.00019779,2]
[408209326,1773244237620,-150.0,0.00019779,2]
[408209327,1773244237630,-150.0,0.00019779,2]
[408209328,1773244237639,-250.0,0.00019779,2]
[408209329,1773244237648,-500.0,0.00019779,2]
[408209330,1773244237657,-250.0,0.0001978,2]
[408209331,1773244237667,-1250.77109935,0.0001978,2]
[408209332,1773244237682,-201.68164233,0.0001978,2]
[408209333,1773244237693,-1500.0,0.000198,7]
[408209334,1773244237703,-250.0,0.000198,2]
[408209335,1773244237712,-593.42423767,0.00019801,2]
[408209336,1773244237723,-406.57576233,0.00019801,2]
[408209337,1773244237733,-279.32887271,0.00019834,2]
[408209338,1773244237743,-150.0,0.00019834,2]
[408209339,1773244237752,-79.77716781,0.00019834,2]
[408209340,1773244237763,-431.22283219,0.00019834,2]
[408209341,1773244237773,-150.0,0.00019834,2]
[408209342,1773244237783,-150.0,0.00019834,2]
[408209343,1773244237792,-500.0,0.00019834,2]
[408209344,1773244237801,-250.0,0.00019835,2]
[408209345,1773244237811,-1324.273,0.00019843,2]
[408209346,1773244237820,-1500.0,0.00019868,2]
[408209347,1773244237829,-337.5,0.00019869,2]
[408209348,1773244237838,-158.55616401,0.00019889,2]
[408209349,1773244237848,-511.0,0.00019889,2]
[408209350,1773244237857,-176.0,0.00019889,2]
[408209351,1773244237866,-250.0,0.00019889,2]
[408209352,1773244237875,-500.0,0.00019889,2]
[408209353,1773244237885,-250.0,0.00019899,2]
[408209354,1773244237894,-319.01588909,0.00019899,2]
[408209355,1773244237904,-4542.23507717,0.00019899,2]
[408209356,1773244237913,-10000.0,0.000199,2]
[408209357,1773244237922,-866.07471451,0.000199,2]
[408209358,1773244237931,-2000.0,0.000199,7]
[408209359,1773244237940,-586.01477361,0.000199,2]
[408209360,1773244237950,-200.76634596,0.000199,2]
[408209361,1773244237959,-2369.86085818,0.000199,2]
[408209362,1773244237969,-1278.03723674,0.000199,2]
[408209364,1773244237978,-2000.0,0.000199,2]
[408209366,1773244237986,-318.0,0.00019904,2]
[408209367,1773244237996,-318.0,0.00019914,2]
[408209368,1773244238004,-318.0,0.00019929,2]
[408209369,1773244238013,-511.0,0.00019944,2]
[408209370,1773244238023,-500.0,0.00019944,2]
[408209371,1773244238032,-250.0,0.00019944,2]
[408209372,1773244238042,-5726.82,0.00019963,2]
[408209373,1773244238051,-500.0,0.00019972,2]
[408209375,1773244238060,-500.0,0.00019972,2]
[408209377,1773244238069,-500.0,0.00019972,2]
[408209379,1773244238078,-500.0,0.00019972,2]
[408209382,1773244238087,-500.0,0.00019972,2]
[408209385,1773244238096,-500.0,0.00019972,2]
[408209388,1773244238106,-500.0,0.00019972,2]
[408209391,1773244238115,-500.0,0.00019972,2]
[408209394,1773244238124,-2393.0,0.00019973,2]
[408209397,1773244238133,-3664.0,0.00019973,2]
[408209400,1773244238142,-500.0,0.00019973,2]
[408209402,1773244238151,-500.0,0.00019973,2]
[408209403,1773244238160,-500.0,0.00019973,2]
[408209404,1773244238169,-250.0,0.00019979,2]
[408209405,1773244238178,-163.0414609,0.0001999,2]
[408209406,1773244238188,-5726.82,0.0001999,2]
[408209407,1773244238198,-350.0,0.00019996,2]
[408209408,1773244238207,-151.0,0.00019996,2]
[408209409,1773244238216,-151.0,0.00019997,2]
[408209410,1773244238225,-151.0,0.00019997,2]
[408209411,1773244238235,-500.0,0.00019998,2]
[408209412,1773244238244,-500.0,0.00019998,2]
[408209413,1773244238256,-500.0,0.00019998,2]
[408209414,1773244238266,-500.0,0.00019998,2]
[408209415,1773244238275,-500.0,0.00019998,2]
[408209416,1773244238285,-500.0,0.00019998,2]
[408209417,1773244238294,-500.0,0.00019998,2]
[408209418,1773244238304,-500.0,0.00019998,2]
[408209419,1773244238314,-500.0,0.00019998,2]
[408209420,1773244238323,-500.0,0.00019998,2]
[408209421,1773244238332,-363.91985609,0.00019998,2]
[408209422,1773244238341,-500.0,0.00019998,2]
[408209423,1773244238350,-500.0,0.00019998,2]
[408209424,1773244238360,-500.0,0.00019998,2]
[408209425,1773244238369,-500.0,0.00019998,2]
[408209426,1773244238378,-499.99999999,0.00019998,2]
[408209427,1773244238389,-511.0,0.00019999,2]
[408209428,1773244238398,-427.41905254,0.00019999,2]
[408209429,1773244238411,-300.0,0.00019999,2]
[408209430,1773244238420,-300.0,0.00019999,2]
[408209431,1773244238430,-3399.42273901,0.00019999,2]
[408209432,1773244240020,-29823.54047749,0.00019999,2]
[408209433,1773244240030,-500.0,0.00019999,2]
[408209434,1773244240039,-500.0,0.00019999,2]
[408209435,1773244240049,-500.0,0.00019999,2]
[408209436,1773244240058,-500.0,0.00019999,2]
[408209437,1773244240069,-500.0,0.00019999,2]
[408209438,1773244240078,-500.0,0.00019999,2]
[408209439,1773244240087,-500.0,0.00019999,2]
[408209440,1773244240096,-500.0,0.00019999,2]
[408209441,1773244240106,-500.0,0.00019999,2]
[408209442,1773244240115,-500.0,0.00019999,2]
[408209443,1773244240124,-500.0,0.00019999,2]
[408209444,1773244240132,-500.0,0.00019999,2]
[408209445,1773244240142,-500.0,0.00019999,2]
[408209446,1773244240151,-366.13816771,0.00019999,2]
[408209447,1773244240160,-506.77106008,0.00019999,2]
[408209448,1773244240169,-500.0,0.00019999,2]
[408209449,1773244240179,-500.0,0.00019999,2]
[408209450,1773244240187,-500.0,0.00019999,2]
[408209451,1773244240197,-500.0,0.00019999,2]
[408209452,1773244240206,-500.0,0.00019999,2]
[408209453,1773244240215,-500.0,0.00019999,2]
[408209454,1773244240224,-500.0,0.00019999,2]
[408209455,1773244240233,-500.0,0.00019999,2]
[408209456,1773244240243,-500.0,0.00019999,2]
[408209457,1773244240252,-500.0,0.00019999,2]
[408209458,1773244240261,-500.0,0.00019999,2]
[408209459,1773244240271,-500.0,0.00019999,2]
[408209460,1773244240279,-500.0,0.00019999,2]
[408209461,1773244240288,-500.0,0.00019999,2]
[408209462,1773244240297,-500.0,0.00019999,2]
[408209463,1773244240306,-481.14,0.00019999,2]
[408209464,1773244240315,-500.0,0.00019999,2]
[408209465,1773244240323,-500.0,0.00019999,2]
[408209466,1773244240332,-527.47030383,0.00019999,2]
[408209467,1773244240341,-433.66808291,0.00019999,2]
[408209468,1773244240349,-333.80551454,0.00019999,2]
[408209469,1773244240358,-397.97236465,0.00019999,2]
[408209470,1773244240377,-531.3103933,0.00019999,2]
[408209471,1773244240386,-500.0,0.00019999,2]
[408209472,1773244240396,-500.0,0.00019999,2]
[408209473,1773244240408,-500.0,0.00019999,2]
[408209474,1773244240417,-500.0,0.00019999,2]
[408209475,1773244240427,-366.62040222,0.00019999,2]
[408209476,1773244240438,-500.0,0.00019999,2]